[Event "*** Titled Tuesday Blitz"]
[Site "Chess.com"]
[Date "2021.04.06"]
[Round "4"]
[White "zajka-molotok"]
[Black "Witik"]
[Result "0-1"]
[WhiteElo "2521"]
[BlackElo "2723"]
[TimeControl "180+1"]
[EndTime "10:39:58 PDT"]
[Termination "Witik won by checkmate"]

1. b4 {[%clk 0:03:00.9]} 1... d5 {[%clk 0:02:59.6]} 2. Bb2 {[%clk 0:03:01]} 2...
Bg4 {[%clk 0:02:59.9]} 3. h3 {[%clk 0:02:58.5]} 3... Bh5 {[%clk 0:02:59.4]} 4.
Nf3 {[%clk 0:02:53.1]} 4... Bxf3 {[%clk 0:02:59.1]} 5. gxf3 {[%clk 0:02:54]}
5... Nd7 {[%clk 0:02:59.5]} 6. f4 {[%clk 0:02:50.7]} 6... Ngf6 {[%clk
0:02:56.6]} 7. e3 {[%clk 0:02:49.1]} 7... g6 {[%clk 0:02:48.6]} 8. c4 {[%clk
0:02:43]} 8... c6 {[%clk 0:02:34.1]} 9. Nc3 {[%clk 0:02:39.7]} 9... e6 {[%clk
0:02:33.1]} 10. b5 {[%clk 0:02:36.3]} 10... Bg7 {[%clk 0:02:19.3]} 11. a4 {[%clk
0:02:31.2]} 11... O-O {[%clk 0:02:18.9]} 12. d3 {[%clk 0:02:27.1]} 12... d4
{[%clk 0:02:02.5]} 13. exd4 {[%clk 0:02:19.2]} 13... Nh5 {[%clk 0:02:02.1]} 14.
Ne2 {[%clk 0:02:18]} 14... Qh4 {[%clk 0:01:53.3]} 15. Qd2 {[%clk 0:02:16.7]}
15... Bh6 {[%clk 0:01:36.3]} 16. Bc1 {[%clk 0:02:15.4]} 16... e5 {[%clk
0:01:29.3]} 17. Qc3 {[%clk 0:01:50.9]} 17... Nxf4 {[%clk 0:01:23.9]} 18. Nxf4
{[%clk 0:01:49.5]} 18... exf4 {[%clk 0:01:15.9]} 19. Bg2 {[%clk 0:01:39.6]}
19... Rfe8+ {[%clk 0:01:11]} 20. Kf1 {[%clk 0:01:39.8]} 20... c5 {[%clk
0:00:47.4]} 21. Bb2 {[%clk 0:01:33]} 21... Bg7 {[%clk 0:00:47.1]} 22. Qd2 {[%clk
0:01:26.6]} 22... Bxd4 {[%clk 0:00:31.8]} 23. Bxd4 {[%clk 0:01:25.8]} 23... cxd4
{[%clk 0:00:32]} 24. Bxb7 {[%clk 0:01:25.6]} 24... Rad8 {[%clk 0:00:31.9]} 25.
Bc6 {[%clk 0:01:17.2]} 25... Re5 {[%clk 0:00:31.8]} 26. Re1 {[%clk 0:01:12.6]}
26... Qf6 {[%clk 0:00:13.2]} 27. Kg2 {[%clk 0:01:02.7]} 27... Rxe1 {[%clk
0:00:12.1]} 28. Rxe1 {[%clk 0:01:01.8]} 28... Ne5 {[%clk 0:00:13]} 29. Bd5
{[%clk 0:00:56.4]} 29... f3+ {[%clk 0:00:13.4]} 30. Kh2 {[%clk 0:00:53.1]} 30...
Ng4+ {[%clk 0:00:11.4]} 31. Kg1 {[%clk 0:00:41]} 31... Rxd5 {[%clk 0:00:09.5]}
32. cxd5 {[%clk 0:00:38.9]} 32... Qh4 {[%clk 0:00:09.8]} 33. Re8+ {[%clk
0:00:14.5]} 33... Kg7 {[%clk 0:00:09.9]} 34. Qf4 {[%clk 0:00:06.9]} 34... Qxf2+
{[%clk 0:00:07.2]} 35. Kh1 {[%clk 0:00:06.6]} 35... Qg2# {[%clk 0:00:07.5]} 0-1

[Event "*** Titled Tuesday Blitz"]
[Site "Chess.com"]
[Date "2021.04.06"]
[Round "4"]
[White "GigaQuparadze"]
[Black "stanyga"]
[Result "1/2-1/2"]
[WhiteElo "2861"]
[BlackElo "2658"]
[TimeControl "180+1"]
[EndTime "10:39:59 PDT"]
[Termination "Game drawn by repetition"]

1. e4 {[%clk 0:03:00.9]} 1... c5 {[%clk 0:02:59.5]} 2. Nf3 {[%clk 0:03:00]} 2...
d6 {[%clk 0:02:59.6]} 3. g3 {[%clk 0:02:58.6]} 3... Nf6 {[%clk 0:02:59.2]} 4.
Qe2 {[%clk 0:02:56.9]} 4... g6 {[%clk 0:02:58.7]} 5. c3 {[%clk 0:02:56]} 5...
Qc7 {[%clk 0:02:43.3]} 6. Bg2 {[%clk 0:02:54.8]} 6... e5 {[%clk 0:02:42.7]} 7.
O-O {[%clk 0:02:54.4]} 7... Nc6 {[%clk 0:02:42.2]} 8. d4 {[%clk 0:02:53.1]} 8...
cxd4 {[%clk 0:02:41.5]} 9. cxd4 {[%clk 0:02:54]} 9... exd4 {[%clk 0:02:41]} 10.
Na3 {[%clk 0:02:53.9]} 10... a6 {[%clk 0:02:38.3]} 11. Bf4 {[%clk 0:02:49.3]}
11... Nh5 {[%clk 0:02:27.4]} 12. Bd2 {[%clk 0:02:46.9]} 12... Bg7 {[%clk
0:02:26.2]} 13. Rac1 {[%clk 0:02:42.5]} 13... O-O {[%clk 0:02:24.7]} 14. Qd3
{[%clk 0:02:39.2]} 14... Qe7 {[%clk 0:02:00.6]} 15. Nc2 {[%clk 0:02:35.8]} 15...
Ne5 {[%clk 0:01:59.5]} 16. Nxe5 {[%clk 0:02:33.4]} 16... dxe5 {[%clk 0:01:59.1]}
17. Bb4 {[%clk 0:02:33]} 17... Qe8 {[%clk 0:01:57]} 18. Bxf8 {[%clk 0:02:32.9]}
18... Bxf8 {[%clk 0:01:57.7]} 19. Na3 {[%clk 0:02:29.3]} 19... Bd7 {[%clk
0:01:55.1]} 20. Nc4 {[%clk 0:02:28.7]} 20... Bc6 {[%clk 0:01:53.8]} 21. Rc2
{[%clk 0:02:24.2]} 21... Ng7 {[%clk 0:01:51.4]} 22. Rfc1 {[%clk 0:02:22.4]}
22... f6 {[%clk 0:01:47.3]} 23. Na5 {[%clk 0:02:21.7]} 23... Bb5 {[%clk
0:01:41.4]} 24. Qb3+ {[%clk 0:02:21]} 24... Kh8 {[%clk 0:01:41.1]} 25. Rc7
{[%clk 0:02:21.4]} 25... b6 {[%clk 0:01:38.7]} 26. Nb7 {[%clk 0:02:14.4]} 26...
Ne6 {[%clk 0:01:37.2]} 27. a4 {[%clk 0:02:02.7]} 27... Bxa4 {[%clk 0:01:32.9]}
28. Qxb6 {[%clk 0:02:01.8]} 28... Nxc7 {[%clk 0:01:32.5]} 29. Rxc7 {[%clk
0:02:01.3]} 29... Be7 {[%clk 0:01:16.3]} 30. Bh3 {[%clk 0:01:47.5]} 30... d3
{[%clk 0:01:08.4]} 31. b3 {[%clk 0:01:41.8]} 31... d2 {[%clk 0:01:03.5]} 32. Bg4
{[%clk 0:01:41.7]} 32... Bd7 {[%clk 0:01:02.5]} 33. Bd1 {[%clk 0:01:36.1]} 33...
Bd8 {[%clk 0:00:57.8]} 34. Nxd8 {[%clk 0:01:27.7]} 34... Qxd8 {[%clk 0:00:57.8]}
35. Qd6 {[%clk 0:01:25]} 35... Bg4 {[%clk 0:00:57.1]} 36. Qxd8+ {[%clk
0:01:22.4]} 36... Rxd8 {[%clk 0:00:56.8]} 37. Bxg4 {[%clk 0:01:22.9]} 37...
d1=Q+ {[%clk 0:00:56.2]} 38. Bxd1 {[%clk 0:01:22.9]} 38... Rxd1+ {[%clk
0:00:56.8]} 39. Kg2 {[%clk 0:01:23.4]} 39... Rd3 {[%clk 0:00:52.9]} 40. Rb7
{[%clk 0:01:22]} 40... Rd4 {[%clk 0:00:49.6]} 41. Kf3 {[%clk 0:01:21.8]} 41...
a5 {[%clk 0:00:48]} 42. Ke3 {[%clk 0:01:19.7]} 42... a4 {[%clk 0:00:48.2]} 43.
bxa4 {[%clk 0:01:13.3]} 43... Rxa4 {[%clk 0:00:48]} 44. Rf7 {[%clk 0:01:11.4]}
44... Ra6 {[%clk 0:00:46.3]} 45. h4 {[%clk 0:01:11]} 45... Kg8 {[%clk
0:00:46.6]} 46. Re7 {[%clk 0:01:11]} 46... Ra3+ {[%clk 0:00:46.3]} 47. Ke2
{[%clk 0:01:10.9]} 47... Ra4 {[%clk 0:00:46.6]} 48. Kf3 {[%clk 0:01:11.1]} 48...
h5 {[%clk 0:00:45.9]} 49. Rd7 {[%clk 0:01:09.5]} 49... Kf8 {[%clk 0:00:45.2]}
50. Ke3 {[%clk 0:01:08.6]} 50... Ra3+ {[%clk 0:00:45.1]} 51. Ke2 {[%clk
0:01:08.7]} 51... Ra4 {[%clk 0:00:45]} 52. Ke3 {[%clk 0:01:08.1]} 52... Ra3+
{[%clk 0:00:45.2]} 53. Rd3 {[%clk 0:01:08.7]} 53... Ra4 {[%clk 0:00:41.1]} 54.
Rb3 {[%clk 0:01:07.4]} 54... Ke7 {[%clk 0:00:41]} 55. Rb7+ {[%clk 0:01:07.3]}
55... Kf8 {[%clk 0:00:41.1]} 56. f4 {[%clk 0:00:59.4]} 56... Ra3+ {[%clk
0:00:40.7]} 57. Kf2 {[%clk 0:00:59.6]} 57... exf4 {[%clk 0:00:40.7]} 58. gxf4
{[%clk 0:00:59.3]} 58... Rh3 {[%clk 0:00:40.7]} 59. Rb6 {[%clk 0:00:54]} 59...
Kf7 {[%clk 0:00:39.3]} 60. Rb7+ {[%clk 0:00:54]} 60... Kf8 {[%clk 0:00:39.3]}
61. Rb6 {[%clk 0:00:53.8]} 61... Kf7 {[%clk 0:00:39.6]} 62. Rb7+ {[%clk
0:00:53]} 62... Kf8 {[%clk 0:00:39.7]} 1/2-1/2

[Event "*** Titled Tuesday Blitz"]
[Site "Chess.com"]
[Date "2021.04.06"]
[Round "4"]
[White "Sueetin"]
[Black "chessmadara"]
[Result "0-1"]
[WhiteElo "2394"]
[BlackElo "2202"]
[TimeControl "180+1"]
[EndTime "10:40:01 PDT"]
[Termination "chessmadara won by resignation"]

1. d4 {[%clk 0:03:00.9]} 1... Nf6 {[%clk 0:02:58.3]} 2. c4 {[%clk 0:03:01.2]}
2... g6 {[%clk 0:02:58.3]} 3. Nc3 {[%clk 0:03:01.6]} 3... d5 {[%clk 0:02:58.4]}
4. cxd5 {[%clk 0:03:02.5]} 4... Nxd5 {[%clk 0:02:59]} 5. e4 {[%clk 0:03:03.3]}
5... Nxc3 {[%clk 0:02:59.1]} 6. bxc3 {[%clk 0:03:04.2]} 6... Bg7 {[%clk
0:02:59.5]} 7. Bb5+ {[%clk 0:03:04.8]} 7... Bd7 {[%clk 0:02:54.7]} 8. Be2 {[%clk
0:03:04.4]} 8... O-O {[%clk 0:02:53.9]} 9. Nf3 {[%clk 0:03:04.3]} 9... c5 {[%clk
0:02:53.9]} 10. Rb1 {[%clk 0:03:03.3]} 10... Qa5 {[%clk 0:02:43.4]} 11. O-O
{[%clk 0:03:00.1]} 11... b5 {[%clk 0:02:22.8]} 12. Bg5 {[%clk 0:02:53.1]} 12...
Re8 {[%clk 0:02:13.4]} 13. Qb3 {[%clk 0:02:48.2]} 13... a6 {[%clk 0:01:58.1]}
14. Ne5 {[%clk 0:02:41.5]} 14... Be6 {[%clk 0:01:56.8]} 15. d5 {[%clk
0:02:38.8]} 15... c4 {[%clk 0:01:49.7]} 16. Qc2 {[%clk 0:02:29.5]} 16... Bxe5
{[%clk 0:01:39.8]} 17. dxe6 {[%clk 0:02:29.7]} 17... Qxc3 {[%clk 0:01:38.7]} 18.
exf7+ {[%clk 0:02:28]} 18... Kxf7 {[%clk 0:01:38.1]} 19. Qd1 {[%clk 0:02:23.6]}
19... Qd4 {[%clk 0:01:34.7]} 20. Qc1 {[%clk 0:02:08.2]} 20... Nc6 {[%clk
0:01:32.6]} 21. Bh4 {[%clk 0:01:56]} 21... Rad8 {[%clk 0:01:30]} 22. Qh6 {[%clk
0:01:47.6]} 22... Kg8 {[%clk 0:01:29.2]} 23. Kh1 {[%clk 0:01:38.3]} 23... Bg7
{[%clk 0:01:23.7]} 24. Qg5 {[%clk 0:01:29.2]} 24... Rf8 {[%clk 0:01:11.8]} 25.
f3 {[%clk 0:01:02]} 25... Qd2 {[%clk 0:01:07.4]} 26. Qxd2 {[%clk 0:00:58.1]}
26... Rxd2 {[%clk 0:01:08.3]} 27. Rfe1 {[%clk 0:00:56.9]} 27... Rxa2 {[%clk
0:01:04.8]} 28. f4 {[%clk 0:00:43.6]} 28... Bc3 {[%clk 0:01:03.8]} 29. Bxc4+
{[%clk 0:00:31.4]} 29... bxc4 {[%clk 0:01:01.1]} 30. Rec1 {[%clk 0:00:32.3]}
30... Ra3 {[%clk 0:00:48.4]} 31. g3 {[%clk 0:00:28.2]} 31... Kf7 {[%clk
0:00:39]} 32. Rb7 {[%clk 0:00:25.6]} 32... Rb8 {[%clk 0:00:37.2]} 33. Rc7 {[%clk
0:00:24.8]} 33... Rb6 {[%clk 0:00:29.7]} 34. e5 {[%clk 0:00:22.7]} 34... Ra1
{[%clk 0:00:27.2]} 35. Rxa1 {[%clk 0:00:22.2]} 35... Bxa1 {[%clk 0:00:28.1]} 36.
Bxe7 {[%clk 0:00:17.3]} 36... Nxe7 {[%clk 0:00:26.8]} 37. Rxc4 {[%clk
0:00:17.8]} 37... Rb1+ {[%clk 0:00:24.3]} 38. Kg2 {[%clk 0:00:18]} 38... a5
{[%clk 0:00:24.1]} 39. g4 {[%clk 0:00:12.3]} 39... Rb4 {[%clk 0:00:23.3]} 40.
Rc1 {[%clk 0:00:07.5]} 40... Bb2 {[%clk 0:00:22.2]} 41. Rb1 {[%clk 0:00:06.4]}
41... a4 {[%clk 0:00:22.5]} 0-1

[Event "*** Titled Tuesday Blitz"]
[Site "Chess.com"]
[Date "2021.04.06"]
[Round "4"]
[White "J36225"]
[Black "FMalexhdez"]
[Result "1-0"]
[WhiteElo "2432"]
[BlackElo "2174"]
[TimeControl "180+1"]
[EndTime "10:40:01 PDT"]
[Termination "J36225 won on time"]

1. e4 {[%clk 0:03:00.9]} 1... c5 {[%clk 0:02:06.3]} 2. Nf3 {[%clk 0:02:59.6]}
2... d6 {[%clk 0:02:06.5]} 3. Bb5+ {[%clk 0:02:57.8]} 3... Bd7 {[%clk
0:02:05.5]} 4. Bxd7+ {[%clk 0:02:56.3]} 4... Qxd7 {[%clk 0:02:06]} 5. c4 {[%clk
0:02:51.3]} 5... Nc6 {[%clk 0:02:06.1]} 6. O-O {[%clk 0:02:50.2]} 6... Nd4
{[%clk 0:02:03.3]} 7. d3 {[%clk 0:02:49.2]} 7... g6 {[%clk 0:02:03.3]} 8. Nc3
{[%clk 0:02:46.3]} 8... Bg7 {[%clk 0:02:03.5]} 9. Be3 {[%clk 0:02:45.8]} 9... e6
{[%clk 0:01:54.1]} 10. Rb1 {[%clk 0:02:30]} 10... Ne7 {[%clk 0:01:54]} 11. Bxd4
{[%clk 0:02:12.7]} 11... cxd4 {[%clk 0:01:52.8]} 12. Ne2 {[%clk 0:02:12.9]}
12... e5 {[%clk 0:01:44.5]} 13. b4 {[%clk 0:02:12.6]} 13... O-O {[%clk
0:01:43.9]} 14. Qb3 {[%clk 0:02:08.6]} 14... Kh8 {[%clk 0:01:36.1]} 15. Rfc1
{[%clk 0:02:01.1]} 15... f5 {[%clk 0:01:35.1]} 16. exf5 {[%clk 0:01:55.8]} 16...
gxf5 {[%clk 0:01:20.1]} 17. c5 {[%clk 0:01:54.1]} 17... d5 {[%clk 0:01:15.8]}
18. b5 {[%clk 0:01:44.2]} 18... Rac8 {[%clk 0:01:12.5]} 19. Rc2 {[%clk
0:01:38.2]} 19... f4 {[%clk 0:01:05.8]} 20. Nd2 {[%clk 0:01:21.7]} 20... Rg8
{[%clk 0:00:57.2]} 21. f3 {[%clk 0:01:00]} 21... Bf6 {[%clk 0:00:51]} 22. Kh1
{[%clk 0:00:58.7]} 22... Rg6 {[%clk 0:00:46.1]} 23. Rbc1 {[%clk 0:00:57.1]}
23... Rcg8 {[%clk 0:00:41.1]} 24. c6 {[%clk 0:00:56.9]} 24... bxc6 {[%clk
0:00:40.9]} 25. bxc6 {[%clk 0:00:57]} 25... Qf5 {[%clk 0:00:38.2]} 26. c7 {[%clk
0:00:48.1]} 26... Rxg2 {[%clk 0:00:35.1]} 27. Nf1 {[%clk 0:00:28.4]} 27... Qh3
{[%clk 0:00:25.2]} 28. Neg3 {[%clk 0:00:07.2]} 28... R2xg3 {[%clk 0:00:17]} 29.
Nxg3 {[%clk 0:00:03.5]} 29... fxg3 {[%clk 0:00:16.2]} 30. Rg2 {[%clk 0:00:02.1]}
30... Nc8 {[%clk 0:00:11.2]} 31. Rcg1 {[%clk 0:00:01.8]} 31... e4 {[%clk
0:00:04.9]} 32. Qb7 {[%clk 0:00:01.8]} 32... exf3 {[%clk 0:00:04.1]} 33. Rxg3
{[%clk 0:00:01.8]} 1-0

[Event "*** Titled Tuesday Blitz"]
[Site "Chess.com"]
[Date "2021.04.06"]
[Round "4"]
[White "ri4mi"]
[Black "attack2mateU"]
[Result "0-1"]
[WhiteElo "2352"]
[BlackElo "2695"]
[TimeControl "180+1"]
[EndTime "10:40:03 PDT"]
[Termination "attack2mateU won by checkmate"]

1. e4 {[%clk 0:03:00.9]} 1... c5 {[%clk 0:02:59.8]} 2. Nc3 {[%clk 0:02:59.8]}
2... d6 {[%clk 0:02:59.7]} 3. d4 {[%clk 0:02:59.7]} 3... cxd4 {[%clk 0:03:00.6]}
4. Qxd4 {[%clk 0:03:00.1]} 4... Nc6 {[%clk 0:03:00.7]} 5. Qd2 {[%clk 0:03:00.6]}
5... g6 {[%clk 0:03:00.7]} 6. b3 {[%clk 0:03:01.1]} 6... Bh6 {[%clk 0:03:01.3]}
7. f4 {[%clk 0:03:00.6]} 7... Nf6 {[%clk 0:03:01.9]} 8. Bb2 {[%clk 0:02:59.6]}
8... O-O {[%clk 0:03:02.5]} 9. O-O-O {[%clk 0:02:59.2]} 9... e5 {[%clk 0:03:03]}
10. g3 {[%clk 0:02:59]} 10... Re8 {[%clk 0:03:03.5]} 11. Bd3 {[%clk 0:02:38.8]}
11... d5 {[%clk 0:02:37]} 12. exd5 {[%clk 0:02:02]} 12... Nxd5 {[%clk
0:02:30.7]} 13. Bc4 {[%clk 0:01:43.3]} 13... Nb6 {[%clk 0:02:03.3]} 14. Bd3
{[%clk 0:01:24.9]} 14... f5 {[%clk 0:01:49.8]} 15. Nf3 {[%clk 0:00:42.3]} 15...
e4 {[%clk 0:01:45.2]} 16. Nxe4 {[%clk 0:00:42.6]} 16... fxe4 {[%clk 0:00:27.1]}
17. Qc3 {[%clk 0:00:42.1]} 17... Qe7 {[%clk 0:00:16.1]} 18. Qh8+ {[%clk
0:00:21]} 18... Kf7 {[%clk 0:00:16.6]} 19. Qxh7+ {[%clk 0:00:21.4]} 19... Ke6
{[%clk 0:00:16.1]} 20. Qxg6+ {[%clk 0:00:17.2]} 20... Kd7 {[%clk 0:00:15.1]} 21.
Bxe4+ {[%clk 0:00:14.8]} 21... Kc7 {[%clk 0:00:15.7]} 22. Ne5 {[%clk 0:00:12.8]}
22... Bg7 {[%clk 0:00:13.8]} 23. Bxc6 {[%clk 0:00:10.3]} 23... bxc6 {[%clk
0:00:10.7]} 24. Qxc6+ {[%clk 0:00:10.7]} 24... Kb8 {[%clk 0:00:11]} 25. Kb1
{[%clk 0:00:08.9]} 25... Bb7 {[%clk 0:00:10.8]} 26. Qc3 {[%clk 0:00:05.8]} 26...
Rc8 {[%clk 0:00:10.4]} 27. Rc1 {[%clk 0:00:05.8]} 27... Rxc3 {[%clk 0:00:10.2]}
28. Bxc3 {[%clk 0:00:06.7]} 28... Nd5 {[%clk 0:00:09.8]} 29. Bb2 {[%clk
0:00:06.1]} 29... a5 {[%clk 0:00:08]} 30. Rhd1 {[%clk 0:00:06.6]} 30... a4
{[%clk 0:00:07.9]} 31. c4 {[%clk 0:00:07.1]} 31... Ne3 {[%clk 0:00:06.5]} 32.
Rd7 {[%clk 0:00:06.3]} 32... Be4+ {[%clk 0:00:06.5]} 33. Ka1 {[%clk 0:00:05.9]}
33... axb3 {[%clk 0:00:05.9]} 34. a3 {[%clk 0:00:03.8]} 34... Rxa3+ {[%clk
0:00:05.4]} 35. Bxa3 {[%clk 0:00:02]} 35... Qxa3# {[%clk 0:00:06.3]} 0-1

[Event "*** Titled Tuesday Blitz"]
[Site "Chess.com"]
[Date "2021.04.06"]
[Round "4"]
[White "kubal123"]
[Black "Supernotar"]
[Result "0-1"]
[WhiteElo "2224"]
[BlackElo "2692"]
[TimeControl "180+1"]
[EndTime "10:40:05 PDT"]
[Termination "Supernotar won by resignation"]

1. Nf3 {[%clk 0:03:00.9]} 1... c5 {[%clk 0:02:59.9]} 2. g3 {[%clk 0:03:01.8]}
2... Nc6 {[%clk 0:02:59.8]} 3. Bg2 {[%clk 0:03:02.4]} 3... g6 {[%clk 0:03:00]}
4. O-O {[%clk 0:03:02.7]} 4... Bg7 {[%clk 0:03:00.3]} 5. e4 {[%clk 0:03:02.3]}
5... d6 {[%clk 0:02:59.2]} 6. d3 {[%clk 0:03:02]} 6... e6 {[%clk 0:02:59.4]} 7.
Re1 {[%clk 0:02:58.6]} 7... Nge7 {[%clk 0:02:59.5]} 8. c3 {[%clk 0:02:58.5]}
8... O-O {[%clk 0:02:59.6]} 9. d4 {[%clk 0:02:59.1]} 9... cxd4 {[%clk
0:02:59.4]} 10. cxd4 {[%clk 0:03:00]} 10... d5 {[%clk 0:02:59.5]} 11. e5 {[%clk
0:03:00.1]} 11... h6 {[%clk 0:02:58.9]} 12. Nc3 {[%clk 0:03:00.1]} 12... Kh7
{[%clk 0:02:59]} 13. h4 {[%clk 0:02:59.4]} 13... b6 {[%clk 0:02:57.2]} 14. Bf4
{[%clk 0:02:52.5]} 14... Bd7 {[%clk 0:02:54.9]} 15. Qd2 {[%clk 0:02:51.9]} 15...
Rc8 {[%clk 0:02:52.2]} 16. Bf1 {[%clk 0:02:50]} 16... Na5 {[%clk 0:02:47.3]} 17.
b3 {[%clk 0:02:44.5]} 17... Nf5 {[%clk 0:02:18.6]} 18. Rac1 {[%clk 0:02:33.1]}
18... Qe7 {[%clk 0:02:14.2]} 19. Ba6 {[%clk 0:02:31.1]} 19... Rc7 {[%clk
0:02:02.5]} 20. Nxd5 {[%clk 0:01:54.1]} 20... exd5 {[%clk 0:01:51.1]} 21. Rxc7
{[%clk 0:01:53.4]} 21... Qd8 {[%clk 0:01:37.3]} 22. Rxa7 {[%clk 0:01:45.5]}
22... Nc6 {[%clk 0:01:27.6]} 23. Rxd7 {[%clk 0:01:23.6]} 23... Qxd7 {[%clk
0:01:27.6]} 24. Bb5 {[%clk 0:01:23.5]} 24... Qb7 {[%clk 0:01:22]} 25. Rc1 {[%clk
0:01:21.9]} 25... Nd8 {[%clk 0:01:18.5]} 26. h5 {[%clk 0:01:16.2]} 26... Qe7
{[%clk 0:01:00.7]} 27. a4 {[%clk 0:01:10]} 27... Ne6 {[%clk 0:00:58.8]} 28. Be3
{[%clk 0:01:03.7]} 28... Qa3 {[%clk 0:00:49.1]} 29. Qc2 {[%clk 0:00:53.5]} 29...
Nxe3 {[%clk 0:00:35.1]} 30. fxe3 {[%clk 0:00:54.4]} 30... Kh8 {[%clk 0:00:30.4]}
31. hxg6 {[%clk 0:00:53.4]} 31... fxg6 {[%clk 0:00:29.5]} 32. Nh4 {[%clk
0:00:53.3]} 32... Kg8 {[%clk 0:00:25.6]} 33. Nxg6 {[%clk 0:00:52.8]} 33... Rf3
{[%clk 0:00:22.7]} 34. Kg2 {[%clk 0:00:44.1]} 34... Rxe3 {[%clk 0:00:22.5]} 35.
Ne7+ {[%clk 0:00:35.6]} 35... Kh8 {[%clk 0:00:22.7]} 36. Ng6+ {[%clk 0:00:28]}
36... Kg8 {[%clk 0:00:22.7]} 37. Rf1 {[%clk 0:00:26]} 37... Qxb3 {[%clk
0:00:15.5]} 38. Qc8+ {[%clk 0:00:25]} 38... Kh7 {[%clk 0:00:14.4]} 39. Qxe6
{[%clk 0:00:23.4]} 39... Rxg3+ {[%clk 0:00:14.2]} 40. Kh2 {[%clk 0:00:21.6]}
40... Rxg6 {[%clk 0:00:13.8]} 41. Qf5 {[%clk 0:00:18.5]} 41... Qg3+ {[%clk
0:00:12.8]} 42. Kh1 {[%clk 0:00:17.3]} 42... Qh4+ {[%clk 0:00:13.2]} 0-1

[Event "*** Titled Tuesday Blitz"]
[Site "Chess.com"]
[Date "2021.04.06"]
[Round "4"]
[White "TST2014"]
[Black "x-4605984566"]
[Result "1-0"]
[WhiteElo "2678"]
[BlackElo "2456"]
[TimeControl "180+1"]
[EndTime "10:40:05 PDT"]
[Termination "TST2014 won on time"]

1. d4 {[%clk 0:02:37.3]} 1... Nf6 {[%clk 0:02:59.4]} 2. c4 {[%clk 0:02:36.6]}
2... g6 {[%clk 0:02:59.5]} 3. Nc3 {[%clk 0:02:36.2]} 3... Bg7 {[%clk 0:02:59.9]}
4. e4 {[%clk 0:02:36.1]} 4... d6 {[%clk 0:02:59.9]} 5. Nf3 {[%clk 0:02:36.1]}
5... O-O {[%clk 0:03:00.3]} 6. Be2 {[%clk 0:02:34.4]} 6... e5 {[%clk 0:03:00.7]}
7. O-O {[%clk 0:02:33.6]} 7... Na6 {[%clk 0:03:00.3]} 8. Be3 {[%clk 0:02:32.6]}
8... c6 {[%clk 0:02:59.8]} 9. d5 {[%clk 0:02:32.2]} 9... c5 {[%clk 0:02:33.7]}
10. Ne1 {[%clk 0:02:29.3]} 10... Ne8 {[%clk 0:02:29.9]} 11. f3 {[%clk
0:02:18.4]} 11... f5 {[%clk 0:02:30.1]} 12. g4 {[%clk 0:02:18.7]} 12... fxg4
{[%clk 0:01:35.9]} 13. fxg4 {[%clk 0:02:17.3]} 13... Rxf1+ {[%clk 0:01:36.8]}
14. Bxf1 {[%clk 0:02:15.6]} 14... Qh4 {[%clk 0:01:35]} 15. Be2 {[%clk
0:01:56.5]} 15... Nf6 {[%clk 0:01:21.8]} 16. Ng2 {[%clk 0:01:45.5]} 16... Qh3
{[%clk 0:01:20.6]} 17. g5 {[%clk 0:01:35.3]} 17... Ng4 {[%clk 0:01:19.8]} 18.
Bxg4 {[%clk 0:01:32.7]} 18... Bxg4 {[%clk 0:01:20.7]} 19. Qd2 {[%clk 0:01:17]}
19... Bf3 {[%clk 0:00:58.7]} 20. a3 {[%clk 0:01:11.2]} 20... Qg4 {[%clk
0:00:39.6]} 21. Re1 {[%clk 0:01:04.8]} 21... Bxe4 {[%clk 0:00:14.8]} 22. h3
{[%clk 0:00:56.2]} 22... Qxg2+ {[%clk 0:00:14.6]} 23. Qxg2 {[%clk 0:00:56.1]}
23... Bxg2 {[%clk 0:00:15.5]} 24. Kxg2 {[%clk 0:00:57]} 24... Rf8 {[%clk
0:00:16]} 25. Ne4 {[%clk 0:00:56.5]} 25... Rd8 {[%clk 0:00:15.3]} 26. h4 {[%clk
0:00:52.7]} 26... Nc7 {[%clk 0:00:15.6]} 27. b4 {[%clk 0:00:51.7]} 27... cxb4
{[%clk 0:00:13.6]} 28. axb4 {[%clk 0:00:51.4]} 28... b5 {[%clk 0:00:14.5]} 29.
Bxa7 {[%clk 0:00:49.5]} 29... bxc4 {[%clk 0:00:14.2]} 30. Bb6 {[%clk 0:00:49.6]}
30... Rd7 {[%clk 0:00:14.8]} 31. Bxc7 {[%clk 0:00:48.1]} 31... Rxc7 {[%clk
0:00:15.7]} 32. Rc1 {[%clk 0:00:39.3]} 32... Bf8 {[%clk 0:00:11.8]} 33. Kf3
{[%clk 0:00:31.6]} 33... Kg7 {[%clk 0:00:12]} 34. b5 {[%clk 0:00:31.8]} 34...
Rb7 {[%clk 0:00:11.4]} 35. Rb1 {[%clk 0:00:31.5]} 35... h6 {[%clk 0:00:10.7]}
36. Ke3 {[%clk 0:00:31.6]} 36... hxg5 {[%clk 0:00:10.4]} 37. hxg5 {[%clk
0:00:31.9]} 37... Be7 {[%clk 0:00:11]} 38. Kd2 {[%clk 0:00:31.5]} 38... Bd8
{[%clk 0:00:09.1]} 39. Kc3 {[%clk 0:00:31.7]} 39... Rc7 {[%clk 0:00:05.6]} 40.
Nxd6 {[%clk 0:00:28.4]} 40... Bxg5 {[%clk 0:00:03.7]} 41. b6 {[%clk 0:00:28.4]}
1-0